[Event "January 9 Late 2024"]
[Site "https://www.chess.com"]
[Date "2024.01.09"]
[Round "1"]
[White "Bonin, Jay"]
[Black "Garakov, Mikhael"]
[Result "1/2-1/2"]
[Board "165"]
[TimeControl "180+1"]
[WhiteFideId "2000644"]
[BlackFideId "4169034"]
[WhiteElo "2313"]
[BlackElo "2657"]
[WhiteTeam "USA"]
[BlackTeam "RUS"]
[WhiteClock "0:00:14"]
[BlackClock "0:00:10"]

1. d4 {[%clk 0:02:58]}  c5 {[%clk 0:02:59]} 2. d5 {[%clk 0:02:57]}  g6 {[%clk 0:02:56]} 3. c4 {[%clk 0:02:56]}  Bg7 {[%clk 0:02:56]} 4. Nc3 {[%clk 0:02:55]}  d6 {[%clk 0:02:55]} 5. e4 {[%clk 0:02:54]}  e6 {[%clk 0:02:56]} 6. Bd3 {[%clk 0:02:52]}  Nf6 {[%clk 0:02:46]} 7. h3 {[%clk 0:02:50]}  O-O {[%clk 0:02:44]} 8. Nf3 {[%clk 0:02:49]}  exd5 {[%clk 0:02:42]} 9. exd5 {[%clk 0:02:48]}  Re8+ {[%clk 0:02:37]} 10. Be3 {[%clk 0:02:48]}  Bf5 {[%clk 0:02:24]} 11. Bxf5 {[%clk 0:02:45]}  gxf5 {[%clk 0:02:24]} 12. O-O {[%clk 0:02:44]}  Ne4 {[%clk 0:02:25]} 13. Ne2 {[%clk 0:02:43]}  Nd7 {[%clk 0:02:19]} 14. Nd2 {[%clk 0:02:41]}  Ne5 {[%clk 0:02:15]} 15. Nxe4 {[%clk 0:02:36]}  fxe4 {[%clk 0:02:14]} 16. Ng3 {[%clk 0:02:32]}  Nxc4 {[%clk 0:02:12]} 17. Qg4 {[%clk 0:02:25]}  Qf6 {[%clk 0:01:59]} 18. Nxe4 {[%clk 0:02:03]}  Qg6 {[%clk 0:01:57]} 19. Qxg6 {[%clk 0:02:00]}  hxg6 {[%clk 0:01:58]} 20. Ng5 {[%clk 0:01:57]}  Bxb2 {[%clk 0:01:40]} 21. Rab1 {[%clk 0:01:56]}  b6 {[%clk 0:01:07]} 22. Bf4 {[%clk 0:01:52]}  Be5 {[%clk 0:01:06]} 23. Bxe5 {[%clk 0:01:47]}  Rxe5 {[%clk 0:01:06]} 24. f4 {[%clk 0:01:46]}  Rxd5 {[%clk 0:01:03]} 25. Rbd1 {[%clk 0:01:43]}  Rxd1 {[%clk 0:01:02]} 26. Rxd1 {[%clk 0:01:42]}  Rd8 {[%clk 0:01:02]} 27. Kf2 {[%clk 0:01:32]}  d5 {[%clk 0:01:01]} 28. h4 {[%clk 0:01:29]}  d4 {[%clk 0:00:59]} 29. g4 {[%clk 0:01:28]}  Ne3 {[%clk 0:00:59]} 30. Rg1 {[%clk 0:01:25]}  c4 {[%clk 0:00:57]} 31. h5 {[%clk 0:01:23]}  c3 {[%clk 0:00:54]} 32. h6 {[%clk 0:01:21]}  c2 {[%clk 0:00:52]} 33. f5 {[%clk 0:01:15]}  Nxg4+ {[%clk 0:00:51]} 34. Rxg4 {[%clk 0:01:10]}  c1=Q {[%clk 0:00:50]} 35. h7+ {[%clk 0:01:04]}  Kg7 {[%clk 0:00:47]} 36. fxg6 {[%clk 0:00:58]}  Qe3+ {[%clk 0:00:44]} 37. Kg2 {[%clk 0:00:57]}  fxg6 {[%clk 0:00:32]} 38. Nf3 {[%clk 0:00:53]}  d3 {[%clk 0:00:30]} 39. Nh4 {[%clk 0:00:51]}  d2 {[%clk 0:00:28]} 40. Nf5+ {[%clk 0:00:50]}  Kxh7 {[%clk 0:00:26]} 41. Nxe3 {[%clk 0:00:49]}  d1=Q {[%clk 0:00:26]} 42. Nxd1 {[%clk 0:00:49]}  Rxd1 {[%clk 0:00:26]} 43. Ra4 {[%clk 0:00:48]}  a5 {[%clk 0:00:26]} 44. Ra3 {[%clk 0:00:48]}  Rd2+ {[%clk 0:00:24]} 45. Kg3 {[%clk 0:00:47]}  Rb2 {[%clk 0:00:25]} 46. Kg4 {[%clk 0:00:45]}  Kh6 {[%clk 0:00:22]} 47. Rh3+ {[%clk 0:00:43]}  Kg7 {[%clk 0:00:23]} 48. a3 {[%clk 0:00:41]}  b5 {[%clk 0:00:20]} 49. Kg5 {[%clk 0:00:41]}  b4 {[%clk 0:00:19]} 50. Rd3 {[%clk 0:00:37]}  b3 {[%clk 0:00:15]} 51. Rd7+ {[%clk 0:00:35]}  Kf8 {[%clk 0:00:15]} 52. Kxg6 {[%clk 0:00:34]}  a4 {[%clk 0:00:15]} 53. Kf6 {[%clk 0:00:31]}  Rf2+ {[%clk 0:00:14]} 54. Ke5 {[%clk 0:00:29]}  Ke8 {[%clk 0:00:11]} 55. Ra7 {[%clk 0:00:26]}  b2 {[%clk 0:00:10]} 56. Rb7 {[%clk 0:00:25]}  Rd2 {[%clk 0:00:08]} 57. Ke4 {[%clk 0:00:23]}  Kd8 {[%clk 0:00:08]} 58. Ke3 {[%clk 0:00:23]}  Kc8 {[%clk 0:00:08]} 59. Kxd2 {[%clk 0:00:21]}  Kxb7 {[%clk 0:00:07]} 60. Kc2 {[%clk 0:00:21]}  Kc6 {[%clk 0:00:07]} 61. Kxb2 {[%clk 0:00:21]}  Kc5 {[%clk 0:00:07]} 62. Kc3 {[%clk 0:00:21]}  Kb5 {[%clk 0:00:06]} 63. Kd4 {[%clk 0:00:14]}  Ka5 {[%clk 0:00:06]} 64. Kc5 {[%clk 0:00:14]}  Ka6 {[%clk 0:00:06]} 65. Kb4 {[%clk 0:00:14]}  Kb6 {[%clk 0:00:07]} 66. Kxa4 {[%clk 0:00:14]}  Ka6 {[%clk 0:00:07]} 67. Kb4 {[%clk 0:00:14]}  Kb6 {[%clk 0:00:08]} 68. a4 {[%clk 0:00:14]}  Ka6 {[%clk 0:00:08]} 69. a5 {[%clk 0:00:14]}  Ka7 {[%clk 0:00:08]} 70. Kb5 {[%clk 0:00:14]}  Kb7 {[%clk 0:00:08]} 71. a6+ {[%clk 0:00:14]}  Ka7 {[%clk 0:00:08]} 72. Ka5 {[%clk 0:00:14]}  Ka8 {[%clk 0:00:09]} 73. Kb6 {[%clk 0:00:14]}  Kb8 {[%clk 0:00:09]} 74. a7+ {[%clk 0:00:14]}  Ka8 {[%clk 0:00:10]} 75. Ka6 {[%clk 0:00:14]} 1/2-1/2

[Event "January 9 Late 2024"]
[Site "https://www.chess.com"]
[Date "2024.01.09"]
[Round "1"]
[White "Nita, Lucian"]
[Black "Vestby-Ellingsen, Mads"]
[Result "0-1"]
[Board "167"]
[TimeControl "180+1"]
[WhiteFideId "1206923"]
[BlackFideId "1520857"]
[WhiteElo "2308"]
[BlackElo "2650"]
[WhiteTeam "ROU"]
[BlackTeam "NOR"]
[WhiteClock "0:01:30"]
[BlackClock "0:01:12"]

1. e4 {[%clk 0:02:57]}  c6 {[%clk 0:02:59]} 2. d3 {[%clk 0:02:57]}  e5 {[%clk 0:02:58]} 3. Nd2 {[%clk 0:02:58]}  d5 {[%clk 0:02:58]} 4. Ngf3 {[%clk 0:02:58]}  Bd6 {[%clk 0:02:58]} 5. Be2 {[%clk 0:02:58]}  Nf6 {[%clk 0:02:58]} 6. O-O {[%clk 0:02:58]}  O-O {[%clk 0:02:58]} 7. c3 {[%clk 0:02:59]}  Re8 {[%clk 0:02:59]} 8. Re1 {[%clk 0:02:59]}  a5 {[%clk 0:02:58]} 9. a4 {[%clk 0:02:58]}  h6 {[%clk 0:02:56]} 10. Qc2 {[%clk 0:02:58]}  Bg4 {[%clk 0:02:55]} 11. Nf1 {[%clk 0:02:57]}  Nbd7 {[%clk 0:02:54]} 12. Ng3 {[%clk 0:02:56]}  Qc7 {[%clk 0:02:52]} 13. h3 {[%clk 0:02:56]}  Be6 {[%clk 0:02:52]} 14. Nh4 {[%clk 0:02:56]}  Bf8 {[%clk 0:02:47]} 15. Nhf5 {[%clk 0:02:54]}  Kh7 {[%clk 0:02:45]} 16. Bd2 {[%clk 0:02:43]}  g6 {[%clk 0:02:44]} 17. Nh4 {[%clk 0:02:40]}  dxe4 {[%clk 0:02:38]} 18. dxe4 {[%clk 0:02:39]}  Nc5 {[%clk 0:02:39]} 19. Nf3 {[%clk 0:02:37]}  Bb3 {[%clk 0:02:36]} 20. Qc1 {[%clk 0:02:37]}  Bxa4 {[%clk 0:02:31]} 21. Bd1 {[%clk 0:02:31]}  Nd3 {[%clk 0:02:27]} 22. Qb1 {[%clk 0:02:28]}  Nxe1 {[%clk 0:02:26]} 23. Nxe1 {[%clk 0:02:13]}  Bxd1 {[%clk 0:02:25]} 24. Qxd1 {[%clk 0:02:11]}  Rad8 {[%clk 0:02:24]} 25. Qe2 {[%clk 0:02:11]}  b5 {[%clk 0:02:07]} 26. Be3 {[%clk 0:02:08]}  a4 {[%clk 0:01:47]} 27. Nd3 {[%clk 0:02:02]}  Qd7 {[%clk 0:01:45]} 28. Ne1 {[%clk 0:01:52]}  Qe6 {[%clk 0:01:43]} 29. Qf3 {[%clk 0:01:52]}  Nd7 {[%clk 0:01:39]} 30. Ne2 {[%clk 0:01:48]}  Nc5 {[%clk 0:01:36]} 31. Nc2 {[%clk 0:01:47]}  Nb3 {[%clk 0:01:29]} 32. Rf1 {[%clk 0:01:46]}  Nd2 {[%clk 0:01:26]} 33. Bxd2 {[%clk 0:01:45]}  Rxd2 {[%clk 0:01:27]} 34. Ne3 {[%clk 0:01:41]}  Rxb2 {[%clk 0:01:24]} 35. Ng3 {[%clk 0:01:39]}  a3 {[%clk 0:01:18]} 36. Ng4 {[%clk 0:01:39]}  Bg7 {[%clk 0:01:18]} 37. h4 {[%clk 0:01:36]}  a2 {[%clk 0:01:17]} 38. Qd3 {[%clk 0:01:30]}  Qxg4 {[%clk 0:01:12]} 0-1

[Event "January 9 Late 2024"]
[Site "https://www.chess.com"]
[Date "2024.01.09"]
[Round "1"]
[White "Rama, Tejas"]
[Black "Szente Varga, Fruzsina"]
[Result "1-0"]
[Board "168"]
[TimeControl "180+1"]
[WhiteFideId "30907381"]
[BlackFideId "712264"]
[WhiteElo "2650"]
[BlackElo "2308"]
[WhiteTeam "USA"]
[BlackTeam "HUN"]
[WhiteClock "0:00:21"]
[BlackClock "0:00:18"]

1. d4 {[%clk 0:03:00]}  Nf6 {[%clk 0:02:59]} 2. c4 {[%clk 0:03:01]}  g6 {[%clk 0:03:00]} 3. Nf3 {[%clk 0:03:02]}  Bg7 {[%clk 0:03:00]} 4. Nc3 {[%clk 0:03:02]}  O-O {[%clk 0:03:00]} 5. e4 {[%clk 0:03:03]}  d6 {[%clk 0:03:00]} 6. Be2 {[%clk 0:03:04]}  e5 {[%clk 0:02:59]} 7. Be3 {[%clk 0:03:04]}  Nbd7 {[%clk 0:02:59]} 8. O-O {[%clk 0:03:03]}  Ne8 {[%clk 0:02:55]} 9. Qc2 {[%clk 0:02:41]}  exd4 {[%clk 0:02:52]} 10. Nxd4 {[%clk 0:02:40]}  Ne5 {[%clk 0:02:47]} 11. h3 {[%clk 0:02:35]}  Qh4 {[%clk 0:02:40]} 12. Rad1 {[%clk 0:01:54]}  Nc6 {[%clk 0:02:36]} 13. Nf3 {[%clk 0:01:45]}  Qd8 {[%clk 0:02:32]} 14. Bg5 {[%clk 0:01:43]}  f6 {[%clk 0:02:30]} 15. Bc1 {[%clk 0:01:40]}  f5 {[%clk 0:02:29]} 16. Bg5 {[%clk 0:01:31]}  Bf6 {[%clk 0:02:17]} 17. Bxf6 {[%clk 0:01:23]}  Nxf6 {[%clk 0:02:18]} 18. e5 {[%clk 0:01:19]}  Ne8 {[%clk 0:02:06]} 19. c5 {[%clk 0:01:07]}  Be6 {[%clk 0:01:58]} 20. cxd6 {[%clk 0:01:02]}  cxd6 {[%clk 0:01:58]} 21. exd6 {[%clk 0:01:02]}  Nf6 {[%clk 0:01:45]} 22. Ng5 {[%clk 0:00:57]}  Bd7 {[%clk 0:01:43]} 23. Bc4+ {[%clk 0:00:57]}  Kg7 {[%clk 0:01:43]} 24. Ne6+ {[%clk 0:00:57]}  Bxe6 {[%clk 0:01:43]} 25. Bxe6 {[%clk 0:00:58]}  Re8 {[%clk 0:01:38]} 26. Rfe1 {[%clk 0:00:57]}  Ne4 {[%clk 0:01:31]} 27. Nxe4 {[%clk 0:00:49]}  Rxe6 {[%clk 0:01:30]} 28. Qc3+ {[%clk 0:00:39]}  Kh6 {[%clk 0:01:25]} 29. Qd2+ {[%clk 0:00:29]}  Kg7 {[%clk 0:01:24]} 30. Ng5 {[%clk 0:00:29]}  Rxd6 {[%clk 0:00:58]} 31. Qxd6 {[%clk 0:00:25]}  Qxg5 {[%clk 0:00:54]} 32. Qd7+ {[%clk 0:00:23]}  Kh6 {[%clk 0:00:44]} 33. Qxb7 {[%clk 0:00:21]}  Rb8 {[%clk 0:00:23]} 34. Qxc6 {[%clk 0:00:20]}  Rxb2 {[%clk 0:00:24]} 35. Qc1 {[%clk 0:00:19]}  Qxc1 {[%clk 0:00:20]} 36. Rxc1 {[%clk 0:00:20]}  Rxa2 {[%clk 0:00:21]} 37. Ra1 {[%clk 0:00:20]}  Rxa1 {[%clk 0:00:18]} 38. Rxa1 {[%clk 0:00:21]} 1-0

[Event "January 9 Late 2024"]
[Site "https://www.chess.com"]
[Date "2024.01.09"]
[Round "1"]
[White "Antonio, Jorge Carlos"]
[Black "Lizak, Peter"]
[Result "1-0"]
[Board "169"]
[TimeControl "180+1"]
[WhiteFideId "113190"]
[BlackFideId "731595"]
[WhiteElo "2307"]
[BlackElo "2649"]
[WhiteTeam "ARG"]
[BlackTeam "HUN"]
[WhiteClock "0:00:43"]
[BlackClock "0:00:06"]

1. e4 {[%clk 0:02:56]}  c6 {[%clk 0:02:58]} 2. Nf3 {[%clk 0:02:56]}  d5 {[%clk 0:02:59]} 3. exd5 {[%clk 0:02:56]}  cxd5 {[%clk 0:02:59]} 4. d4 {[%clk 0:02:57]}  Nc6 {[%clk 0:02:59]} 5. c3 {[%clk 0:02:49]}  Bg4 {[%clk 0:02:59]} 6. Bd3 {[%clk 0:02:49]}  e6 {[%clk 0:02:58]} 7. h3 {[%clk 0:02:43]}  Bh5 {[%clk 0:02:58]} 8. Bf4 {[%clk 0:02:43]}  Bd6 {[%clk 0:02:56]} 9. Bxd6 {[%clk 0:02:41]}  Qxd6 {[%clk 0:02:57]} 10. O-O {[%clk 0:02:37]}  Nf6 {[%clk 0:02:56]} 11. Nbd2 {[%clk 0:02:35]}  O-O {[%clk 0:02:56]} 12. Re1 {[%clk 0:02:32]}  a6 {[%clk 0:02:52]} 13. Qc2 {[%clk 0:02:31]}  Bg6 {[%clk 0:02:49]} 14. Bxg6 {[%clk 0:02:29]}  hxg6 {[%clk 0:02:49]} 15. Ne5 {[%clk 0:02:24]}  Rac8 {[%clk 0:02:48]} 16. Ndf3 {[%clk 0:02:21]}  Ne4 {[%clk 0:02:44]} 17. Qe2 {[%clk 0:02:17]}  Ne7 {[%clk 0:02:34]} 18. a3 {[%clk 0:02:17]}  f6 {[%clk 0:02:25]} 19. Nd3 {[%clk 0:02:13]}  g5 {[%clk 0:02:25]} 20. Nd2 {[%clk 0:02:10]}  Nxd2 {[%clk 0:02:21]} 21. Qxd2 {[%clk 0:02:10]}  Ng6 {[%clk 0:02:22]} 22. Re2 {[%clk 0:02:05]}  Rce8 {[%clk 0:02:16]} 23. Rae1 {[%clk 0:02:04]}  Kf7 {[%clk 0:02:15]} 24. Nc5 {[%clk 0:02:00]}  Nf4 {[%clk 0:02:11]} 25. Re3 {[%clk 0:01:57]}  Re7 {[%clk 0:02:05]} 26. g3 {[%clk 0:01:51]}  b6 {[%clk 0:01:56]} 27. gxf4 {[%clk 0:01:47]}  bxc5 {[%clk 0:01:54]} 28. fxg5 {[%clk 0:01:44]}  cxd4 {[%clk 0:01:49]} 29. Qxd4 {[%clk 0:01:39]}  Rh8 {[%clk 0:01:37]} 30. Qg4 {[%clk 0:01:29]}  f5 {[%clk 0:01:27]} 31. Qd4 {[%clk 0:01:24]}  Rh5 {[%clk 0:01:11]} 32. h4 {[%clk 0:01:18]}  f4 {[%clk 0:01:08]} 33. Re5 {[%clk 0:01:15]}  Rxh4 {[%clk 0:01:07]} 34. c4 {[%clk 0:01:10]}  Rg4+ {[%clk 0:00:40]} 35. Kf1 {[%clk 0:01:07]}  Qc6 {[%clk 0:00:37]} 36. cxd5 {[%clk 0:01:04]}  Qb5+ {[%clk 0:00:37]} 37. R1e2 {[%clk 0:01:01]}  Qb3 {[%clk 0:00:30]} 38. Rxe6 {[%clk 0:00:58]}  Rxe6 {[%clk 0:00:14]} 39. dxe6+ {[%clk 0:00:57]}  Kg6 {[%clk 0:00:14]} 40. e7 {[%clk 0:00:50]}  f3 {[%clk 0:00:05]} 41. e8=Q+ {[%clk 0:00:47]}  Kxg5 {[%clk 0:00:06]} 42. Qde5+ {[%clk 0:00:46]}  Kh4 {[%clk 0:00:06]} 43. Qh8# {[%clk 0:00:43]} 1-0

[Event "January 9 Late 2024"]
[Site "https://www.chess.com"]
[Date "2024.01.09"]
[Round "1"]
[White "Gubajdullin, Alexei"]
[Black "Sultanbek, Zeinep"]
[Result "1-0"]
[Board "170"]
[TimeControl "180+1"]
[WhiteFideId "4141202"]
[BlackFideId "13710419"]
[WhiteElo "2647"]
[BlackElo "2306"]
[WhiteTeam "RUS"]
[BlackTeam "KAZ"]
[WhiteClock "0:01:18"]
[BlackClock "0:00:00"]

1. d4 {[%clk 0:02:59]}  d5 {[%clk 0:02:59]} 2. Nf3 {[%clk 0:02:59]}  Nf6 {[%clk 0:02:56]} 3. Bf4 {[%clk 0:02:53]}  c5 {[%clk 0:02:55]} 4. e3 {[%clk 0:02:51]}  Nc6 {[%clk 0:02:56]} 5. Nbd2 {[%clk 0:02:51]}  Qb6 {[%clk 0:02:49]} 6. dxc5 {[%clk 0:02:49]}  Qxb2 {[%clk 0:02:42]} 7. c4 {[%clk 0:02:49]}  e6 {[%clk 0:02:38]} 8. Qc1 {[%clk 0:02:48]}  Qxc1+ {[%clk 0:02:22]} 9. Rxc1 {[%clk 0:02:47]}  Bxc5 {[%clk 0:01:56]} 10. cxd5 {[%clk 0:02:47]}  Ba3 {[%clk 0:01:55]} 11. dxc6 {[%clk 0:02:47]}  Bxc1 {[%clk 0:01:55]} 12. Nc4 {[%clk 0:02:47]}  bxc6 {[%clk 0:01:37]} 13. Kd1 {[%clk 0:02:45]}  Ne4 {[%clk 0:01:33]} 14. Kxc1 {[%clk 0:02:42]}  Nxf2 {[%clk 0:01:33]} 15. Rg1 {[%clk 0:02:42]}  f6 {[%clk 0:01:28]} 16. Bd6 {[%clk 0:02:40]}  e5 {[%clk 0:01:24]} 17. Ba3 {[%clk 0:02:39]}  Be6 {[%clk 0:01:19]} 18. Nd6+ {[%clk 0:02:27]}  Kd7 {[%clk 0:01:18]} 19. Bc4 {[%clk 0:02:11]}  Bxc4 {[%clk 0:01:07]} 20. Nxc4 {[%clk 0:02:11]}  Ke6 {[%clk 0:01:05]} 21. Kc2 {[%clk 0:02:08]}  Rhd8 {[%clk 0:00:59]} 22. Nfd2 {[%clk 0:02:07]}  Rd7 {[%clk 0:00:46]} 23. Nb3 {[%clk 0:02:04]}  Ne4 {[%clk 0:00:34]} 24. g4 {[%clk 0:01:57]}  Rad8 {[%clk 0:00:33]} 25. h4 {[%clk 0:01:51]}  Rd3 {[%clk 0:00:23]} 26. Bb2 {[%clk 0:01:49]}  g6 {[%clk 0:00:07]} 27. Nd4+ {[%clk 0:01:44]}  exd4 {[%clk 0:00:04]} 28. Kxd3 {[%clk 0:01:43]}  Nc5+ {[%clk 0:00:04]} 29. Kd2 {[%clk 0:01:32]}  Ne4+ {[%clk 0:00:03]} 30. Kd3 {[%clk 0:01:29]}  Nc5+ {[%clk 0:00:03]} 31. Ke2 {[%clk 0:01:30]}  d3+ {[%clk 0:00:03]} 32. Kf3 {[%clk 0:01:29]}  Rb8 {[%clk 0:00:03]} 33. Bd4 {[%clk 0:01:25]}  Kd5 {[%clk 0:00:02]} 34. Nd2 {[%clk 0:01:21]}  Ne6 {[%clk 0:00:00]} 35. Bxf6 {[%clk 0:01:18]} 1-0

[Event "January 9 Late 2024"]
[Site "https://www.chess.com"]
[Date "2024.01.09"]
[Round "1"]
[White "Sun, Rick"]
[Black "Ardila, Oscar Humberto"]
[Result "1-0"]
[Board "174"]
[TimeControl "180+1"]
[WhiteFideId "30909481"]
[BlackFideId "4404742"]
[WhiteElo "2642"]
[BlackElo "2299"]
[WhiteTeam "USA"]
[BlackTeam "COL"]
[WhiteClock "0:00:16"]
[BlackClock "0:00:00"]

1. d4 {[%clk 0:03:00]}  Nf6 {[%clk 0:02:59]} 2. Nc3 {[%clk 0:02:58]}  e6 {[%clk 0:02:59]} 3. e4 {[%clk 0:02:58]}  Bb4 {[%clk 0:02:57]} 4. e5 {[%clk 0:02:58]}  Nd5 {[%clk 0:02:57]} 5. Qg4 {[%clk 0:02:58]}  g6 {[%clk 0:02:53]} 6. a3 {[%clk 0:02:46]}  Be7 {[%clk 0:02:53]} 7. Bh6 {[%clk 0:02:32]}  d6 {[%clk 0:02:50]} 8. Nf3 {[%clk 0:02:31]}  Nxc3 {[%clk 0:02:38]} 9. bxc3 {[%clk 0:02:31]}  dxe5 {[%clk 0:02:36]} 10. Nxe5 {[%clk 0:02:30]}  Nd7 {[%clk 0:02:36]} 11. Bb5 {[%clk 0:02:18]}  c6 {[%clk 0:02:36]} 12. Bc4 {[%clk 0:02:15]}  Nxe5 {[%clk 0:02:34]} 13. dxe5 {[%clk 0:02:16]}  Qa5 {[%clk 0:02:31]} 14. O-O {[%clk 0:02:13]}  Qxe5 {[%clk 0:02:27]} 15. Rad1 {[%clk 0:02:01]}  Qh5 {[%clk 0:02:23]} 16. Qf4 {[%clk 0:01:44]}  Qf5 {[%clk 0:02:19]} 17. Qd2 {[%clk 0:01:35]}  f6 {[%clk 0:01:56]} 18. Rfe1 {[%clk 0:01:23]}  Kf7 {[%clk 0:01:56]} 19. Re3 {[%clk 0:01:11]}  Re8 {[%clk 0:01:48]} 20. Rde1 {[%clk 0:01:09]}  Bc5 {[%clk 0:01:48]} 21. Rf3 {[%clk 0:01:07]}  Qg4 {[%clk 0:01:35]} 22. Rf4 {[%clk 0:00:53]}  Qh5 {[%clk 0:01:23]} 23. g4 {[%clk 0:00:48]}  Qh3 {[%clk 0:00:08]} 24. Bf1 {[%clk 0:00:37]}  Qh4 {[%clk 0:00:03]} 25. g5 {[%clk 0:00:33]}  Qh5 {[%clk 0:00:03]} 26. Be2 {[%clk 0:00:17]}  Qh3 {[%clk 0:00:03]} 27. Bg4 {[%clk 0:00:17]}  Qh4 {[%clk 0:00:01]} 28. Bxe6+ {[%clk 0:00:16]}  Bxe6 {[%clk 0:00:00]} 29. Rxh4 {[%clk 0:00:16]} 1-0

[Event "January 9 Late 2024"]
[Site "https://www.chess.com"]
[Date "2024.01.09"]
[Round "1"]
[White "Sarkar, Justin"]
[Black "Skatchkov, Valery"]
[Result "0-1"]
[Board "175"]
[TimeControl "180+1"]
[WhiteFideId "2010011"]
[BlackFideId "24195812"]
[WhiteElo "2294"]
[BlackElo "2641"]
[WhiteTeam "USA"]
[BlackTeam "RUS"]
[WhiteClock "0:00:00"]
[BlackClock "0:01:17"]

1. d4 {[%clk 0:02:28]}  Nf6 {[%clk 0:02:57]} 2. c4 {[%clk 0:02:27]}  e6 {[%clk 0:02:55]} 3. Nf3 {[%clk 0:02:25]}  d5 {[%clk 0:02:54]} 4. Nc3 {[%clk 0:02:25]}  Ne4 {[%clk 0:02:54]} 5. e3 {[%clk 0:02:20]}  f5 {[%clk 0:02:53]} 6. Bd3 {[%clk 0:02:13]}  c6 {[%clk 0:02:54]} 7. O-O {[%clk 0:02:12]}  Bd6 {[%clk 0:02:54]} 8. Ne5 {[%clk 0:02:05]}  O-O {[%clk 0:02:54]} 9. f3 {[%clk 0:02:00]}  Nxc3 {[%clk 0:02:50]} 10. bxc3 {[%clk 0:02:01]}  Nd7 {[%clk 0:02:50]} 11. Nxd7 {[%clk 0:01:40]}  Bxd7 {[%clk 0:02:49]} 12. cxd5 {[%clk 0:01:36]}  exd5 {[%clk 0:02:50]} 13. c4 {[%clk 0:01:34]}  dxc4 {[%clk 0:02:50]} 14. Bxc4+ {[%clk 0:01:34]}  Kh8 {[%clk 0:02:51]} 15. Qe1 {[%clk 0:01:19]}  Qf6 {[%clk 0:02:41]} 16. Bb2 {[%clk 0:01:10]}  Rae8 {[%clk 0:02:42]} 17. Qf2 {[%clk 0:01:09]}  Qh6 {[%clk 0:02:43]} 18. f4 {[%clk 0:01:01]}  Be6 {[%clk 0:02:37]} 19. Bd3 {[%clk 0:00:50]}  Bd5 {[%clk 0:02:34]} 20. a4 {[%clk 0:00:49]}  Qe6 {[%clk 0:02:30]} 21. Rfe1 {[%clk 0:00:43]}  Bb4 {[%clk 0:02:23]} 22. Re2 {[%clk 0:00:41]}  Rf6 {[%clk 0:02:16]} 23. Ba3 {[%clk 0:00:39]}  Bxa3 {[%clk 0:01:39]} 24. Rxa3 {[%clk 0:00:39]}  Rg6 {[%clk 0:01:40]} 25. g3 {[%clk 0:00:33]}  Qd6 {[%clk 0:01:39]} 26. Ra1 {[%clk 0:00:29]}  Rf6 {[%clk 0:01:33]} 27. a5 {[%clk 0:00:26]}  Qd7 {[%clk 0:01:28]} 28. Rb1 {[%clk 0:00:24]}  Qf7 {[%clk 0:01:24]} 29. Reb2 {[%clk 0:00:21]}  Re7 {[%clk 0:01:25]} 30. Bf1 {[%clk 0:00:16]}  Rfe6 {[%clk 0:01:25]} 31. Re1 {[%clk 0:00:13]}  Qf6 {[%clk 0:01:15]} 32. Bg2 {[%clk 0:00:12]}  Qxd4 {[%clk 0:01:16]} 33. exd4 {[%clk 0:00:07]}  Rxe1+ {[%clk 0:01:17]} 34. Bf1 {[%clk 0:00:00]}  Bc4 {[%clk 0:01:17]} 0-1

[Event "January 9 Late 2024"]
[Site "https://www.chess.com"]
[Date "2024.01.09"]
[Round "1"]
[White "Sivakumar, Shaaketh"]
[Black "Slavin, Alexey"]
[Result "1-0"]
[Board "176"]
[TimeControl "180+1"]
[WhiteFideId "30940176"]
[BlackFideId "24104388"]
[WhiteElo "2641"]
[BlackElo "2294"]
[WhiteTeam "USA"]
[BlackTeam "RUS"]
[WhiteClock "0:01:34"]
[BlackClock "0:00:05"]

1. e4 {[%clk 0:03:00]}  Nc6 {[%clk 0:02:58]} 2. d4 {[%clk 0:02:59]}  d6 {[%clk 0:02:58]} 3. Nc3 {[%clk 0:02:58]}  Nf6 {[%clk 0:02:58]} 4. Be3 {[%clk 0:02:59]}  e5 {[%clk 0:02:58]} 5. d5 {[%clk 0:02:58]}  Ne7 {[%clk 0:02:57]} 6. h3 {[%clk 0:02:57]}  Ng6 {[%clk 0:02:58]} 7. g3 {[%clk 0:02:57]}  Be7 {[%clk 0:02:58]} 8. Bg2 {[%clk 0:02:57]}  O-O {[%clk 0:02:58]} 9. Nge2 {[%clk 0:02:57]}  Bd7 {[%clk 0:02:56]} 10. O-O {[%clk 0:02:57]}  h6 {[%clk 0:02:56]} 11. f4 {[%clk 0:02:56]}  exf4 {[%clk 0:02:56]} 12. gxf4 {[%clk 0:02:52]}  Nh4 {[%clk 0:02:55]} 13. e5 {[%clk 0:02:48]}  Nxg2 {[%clk 0:02:48]} 14. Kxg2 {[%clk 0:02:49]}  dxe5 {[%clk 0:02:46]} 15. fxe5 {[%clk 0:02:49]}  Nh7 {[%clk 0:02:45]} 16. Ng3 {[%clk 0:02:46]}  Bg5 {[%clk 0:02:42]} 17. Bd4 {[%clk 0:02:46]}  c6 {[%clk 0:02:14]} 18. d6 {[%clk 0:02:45]}  b6 {[%clk 0:02:13]} 19. Nce4 {[%clk 0:02:27]}  Bh4 {[%clk 0:02:13]} 20. Bc3 {[%clk 0:02:24]}  c5 {[%clk 0:02:08]} 21. Qh5 {[%clk 0:02:20]}  Bc6 {[%clk 0:02:01]} 22. Kh2 {[%clk 0:02:21]}  b5 {[%clk 0:01:39]} 23. Rg1 {[%clk 0:02:19]}  b4 {[%clk 0:01:01]} 24. Nf5 {[%clk 0:02:18]}  Bg5 {[%clk 0:00:58]} 25. Nxg5 {[%clk 0:01:41]}  Nxg5 {[%clk 0:00:57]} 26. Ne7+ {[%clk 0:01:34]}  Kh8 {[%clk 0:00:48]} 27. Rxg5 {[%clk 0:01:33]}  bxc3 {[%clk 0:00:46]} 28. Rxg7 {[%clk 0:01:33]}  Kxg7 {[%clk 0:00:18]} 29. Rg1+ {[%clk 0:01:33]}  Kh7 {[%clk 0:00:18]} 30. Qf5+ {[%clk 0:01:33]}  Kh8 {[%clk 0:00:05]} 31. Qf6+ {[%clk 0:01:34]} 1-0